fUSD/lending_fUSD_20250112
["ID","MTS","AMOUNT","RATE_DAILY","PERIOD"]
[348650468,1736698273203,-651.02,0.00012264,2]
[348650469,1736698273213,-1343.35,0.00012264,2]
[348650470,1736698273223,-500.0,0.00012264,2]
[348650471,1736698273233,-500.0,0.00012264,2]
[348650472,1736698273243,-500.0,0.00012264,2]
[348650473,1736698273252,-500.0,0.00012264,2]
[348650474,1736698273262,-824.32,0.00012264,2]
[348650475,1736698273272,-500.0,0.00012264,2]
[348650476,1736698273282,-604.55,0.00012264,2]
[348650477,1736698273291,-500.0,0.00012264,2]
[348650478,1736698273300,-572.61,0.00012264,2]
[348650479,1736698273310,-500.0,0.00012264,2]
[348650480,1736698273319,-500.0,0.00012264,2]
[348650481,1736698273329,-737.79,0.00012264,2]
[348650482,1736698273342,-778.33,0.00012264,2]
[348650483,1736698273352,-2030.34,0.00012264,2]
[348650484,1736698273362,-674.75,0.00012264,2]
[348650485,1736698273371,-627.29,0.00012264,2]
[348650486,1736698273381,-500.0,0.00012264,2]
[348650487,1736698273391,-2555.28,0.00012264,2]
[348650488,1736698273402,-500.0,0.00012264,2]
[348650489,1736698273412,-769.52,0.00012264,2]
[348650490,1736698273680,-500.0,0.00012264,2]
[348650491,1736698273702,-1099.8,0.00012264,2]
[348650492,1736698273711,-822.56,0.00012264,2]
[348650493,1736698273721,-661.75,0.00012264,2]
[348650494,1736698273731,-568.57,0.00012264,2]
[348650495,1736698273740,-739.69,0.00012264,2]
[348650496,1736698273750,-500.0,0.00012264,2]
[348650497,1736698273760,-1321.1,0.00012264,2]
[348650498,1736698273769,-712.08,0.00012264,2]
[348650499,1736698273779,-500.0,0.00012264,2]
[348650500,1736698273788,-500.0,0.00012264,2]
[348650501,1736698273797,-520.917218,0.00012264,2]
[348650502,1736698273807,-1250.26,0.00012264,2]
[348650503,1736698273816,-720.34,0.00012264,2]
[348650504,1736698273826,-500.0,0.00012264,2]
[348650505,1736698273835,-586.56,0.00012264,2]
[348650506,1736698273844,-1947.94,0.00012264,2]
[348650507,1736698273854,-500.0,0.00012264,2]
[348650508,1736698273864,-209.18558072,0.00012264,2]
[348650509,1736698273873,-874.09,0.00012264,2]
[348650510,1736698273883,-477.985251,0.00012264,2]
[348650511,1736698273892,-1912.02,0.00012264,2]
[348650512,1736698273902,-750.64,0.00012264,2]
[348650513,1736698273912,-6413.91,0.00012264,2]
[348650514,1736698273922,-574.46,0.00012264,2]
[348650515,1736698273931,-500.0,0.00012264,2]
[348650516,1736698273941,-500.0,0.00012264,2]
[348650517,1736698273950,-663.35,0.00012264,2]
[348650518,1736698273960,-618.3,0.00012264,2]
[348650519,1736698273969,-707.41,0.00012264,2]
[348650520,1736698273980,-580.09,0.00012264,2]
[348650521,1736698273992,-500.0,0.00012264,2]
[348650522,1736698274002,-3816.01,0.00012264,2]
[348650523,1736698274012,-763.36,0.00012264,2]
[348650524,1736698274024,-994.13,0.00012264,2]
[348650525,1736698274036,-817.51,0.00012264,2]
[348650526,1736698274047,-500.0,0.00012264,2]
[348650527,1736698274056,-553.72,0.00012264,2]
[348650528,1736698274067,-1800.29,0.00012264,2]
[348650529,1736698274079,-500.0,0.00012264,2]
[348650530,1736698274090,-3410.99,0.00012264,2]
[348650531,1736698274100,-785.84,0.00012264,2]
[348650532,1736698274111,-500.0,0.00012264,2]
[348650533,1736698274120,-811.26,0.00012264,2]
[348650534,1736698274130,-544.71,0.00012264,2]
[348650535,1736698274139,-702.98,0.00012264,2]
[348650536,1736698274149,-500.0,0.00012264,2]
[348650537,1736698274159,-2588.92,0.00012264,2]
[348650538,1736698274169,-2758.27,0.00012264,2]
[348650539,1736698274179,-500.0,0.00012264,2]
[348650540,1736698274189,-1069.66,0.00012264,2]
[348650541,1736698274199,-832.82,0.00012264,2]
[348650542,1736698274209,-724.64,0.00012264,2]
[348650543,1736698274218,-500.0,0.00012264,2]
[348650544,1736698274229,-2968.94,0.00012264,2]
[348650545,1736698274240,-549.09,0.00012264,2]
[348650546,1736698274251,-677.23,0.00012264,2]
[348650547,1736698274261,-697.25,0.00012264,2]
[348650548,1736698274271,-500.0,0.00012264,2]
[348650549,1736698274281,-604.83,0.00012264,2]
[348650550,1736698274292,-1761.21,0.00012264,2]
[348650551,1736698274301,-551.92,0.00012264,2]
[348650552,1736698274311,-701.02,0.00012264,2]
[348650553,1736698274321,-500.0,0.00012264,2]
[348650554,1736698274334,-534.93,0.00012264,2]
[348650555,1736698274347,-1390.39,0.00012264,2]
[348650556,1736698274357,-619.4,0.00012264,2]
[348650557,1736698274367,-1118.37,0.00012264,2]
[348650558,1736698274378,-667.23,0.00012264,2]
[348650559,1736698274388,-539.66,0.00012264,2]
[348650560,1736698274400,-1432.73,0.00012264,2]
[348650561,1736698274410,-500.0,0.00012264,2]
[348650562,1736698274422,-629.17,0.00012264,2]
[348650563,1736698274432,-899.38,0.00012264,2]
[348650564,1736698274442,-624.82,0.00012264,2]
[348650565,1736698274452,-7500.0,0.00012264,2]
[348650566,1736698274463,-500.0,0.00012265,2]
[348650567,1736698274476,-500.0,0.00012265,2]
[348650568,1736698274485,-477.20473561,0.00012265,2]
[348650569,1736698274495,-500.0,0.00012265,2]
[348650570,1736698274504,-1085.53,0.00012265,2]
[348650571,1736698274513,-2625.53,0.00012265,2]
[348650572,1736698274523,-500.0,0.00012265,2]
[348650573,1736698274532,-2931.62,0.00012265,2]
[348650574,1736698274541,-500.0,0.00012265,2]
[348650575,1736698274551,-500.0,0.00012265,2]
[348650576,1736698274561,-500.0,0.00012265,2]
[348650577,1736698274572,-500.0,0.00012265,2]
[348650578,1736698274582,-500.0,0.00012265,2]
[348650579,1736698274592,-500.0,0.00012265,2]
[348650580,1736698274602,-500.0,0.00012265,2]
[348650581,1736698274611,-500.0,0.00012265,2]
[348650582,1736698274621,-500.0,0.00012265,2]
[348650583,1736698274630,-2949.15,0.00012265,2]
[348650584,1736698274639,-500.0,0.00012265,2]
[348650585,1736698274649,-500.0,0.00012265,2]
[348650586,1736698274658,-500.0,0.00012265,2]
[348650587,1736698274667,-500.0,0.00012265,2]
[348650588,1736698274676,-500.0,0.00012265,2]
[348650589,1736698274686,-578.26,0.00012265,2]
[348650590,1736698274695,-178.49693324,0.00012265,2]
[348650591,1736698274705,-500.0,0.00012265,2]
[348650592,1736698274715,-639.94,0.00012265,2]
[348650593,1736698274724,-500.0,0.00012265,2]
[348650594,1736698274734,-500.0,0.00012265,2]
[348650595,1736698274743,-527.2,0.00012265,2]
[348650596,1736698274753,-500.0,0.00012265,2]
[348650597,1736698274763,-500.0,0.00012265,2]
[348650598,1736698274773,-526.05,0.00012265,2]
[348650599,1736698274783,-500.0,0.00012265,2]
[348650600,1736698274793,-500.0,0.00012265,2]
[348650601,1736698274803,-536.07,0.00012265,2]
[348650602,1736698274814,-500.0,0.00012265,2]
[348650603,1736698274824,-500.0,0.00012265,2]
[348650604,1736698274834,-286.15344738,0.00012265,2]
[348650605,1736698274845,-500.0,0.00012265,2]
[348650606,1736698274855,-500.0,0.00012265,2]
[348650607,1736698274865,-500.0,0.00012265,2]
[348650608,1736698274875,-1225.39,0.00012265,2]
[348650609,1736698274885,-500.0,0.00012265,2]
[348650610,1736698274894,-565.92,0.00012265,2]
[348650611,1736698274904,-680.43,0.00012265,2]
[348650612,1736698274914,-949.43,0.00012265,2]
[348650613,1736698274923,-500.0,0.00012265,2]
[348650614,1736698274934,-500.0,0.00012265,2]
[348650615,1736698274944,-500.0,0.00012265,2]
[348650616,1736698274954,-500.0,0.00012265,2]
[348650617,1736698274964,-500.0,0.00012265,2]
[348650618,1736698274974,-500.0,0.00012265,2]
[348650619,1736698274984,-836.62,0.00012265,2]
[348650620,1736698274994,-1224.04,0.00012265,2]
[348650621,1736698275004,-670.04,0.00012265,2]
[348650622,1736698275014,-500.0,0.00012265,2]
[348650623,1736698275024,-966.69,0.00012265,2]
[348650624,1736698275034,-769.16,0.00012265,2]
[348650625,1736698275044,-1278.83,0.00012265,2]
[348650626,1736698275055,-500.0,0.00012265,2]
[348650627,1736698275065,-500.0,0.00012265,2]
[348650628,1736698275074,-500.0,0.00012265,2]
[348650629,1736698275083,-1772.47,0.00012265,2]
[348650630,1736698275093,-500.0,0.00012265,2]
[348650631,1736698275103,-500.0,0.00012265,2]
[348650632,1736698275113,-622.86,0.00012265,2]
[348650633,1736698275123,-500.0,0.00012265,2]
[348650634,1736698275133,-1258.1,0.00012265,2]
[348650635,1736698275142,-500.0,0.00012265,2]
[348650636,1736698275152,-500.0,0.00012265,2]
[348650637,1736698275163,-677.55,0.00012265,2]
[348650638,1736698275172,-500.0,0.00012265,2]
[348650639,1736698275182,-3775.72,0.00012265,2]
[348650640,1736698275192,-587.48,0.00012265,2]
[348650641,1736698275201,-779.09,0.00012265,2]
[348650642,1736698275211,-2872.41,0.00012265,2]
[348650643,1736698275221,-785.75,0.00012265,2]
[348650644,1736698275231,-1364.9,0.00012265,2]
[348650645,1736698275241,-540.47,0.00012265,2]
[348650646,1736698275250,-508.1,0.00012265,2]
[348650647,1736698275261,-751.84,0.00012265,2]
[348650648,1736698275271,-500.0,0.00012265,2]
[348650649,1736698275282,-500.0,0.00012265,2]
[348650650,1736698275292,-1078.66,0.00012265,2]
[348650651,1736698275303,-1000.0,0.00012274,2]
[348650652,1736698275312,-360.06,0.00012285,2]
[348650653,1736698275321,-150.0,0.00012287,2]
[348650654,1736698275331,-200.82351209,0.00012289,2]
[348650655,1736698275345,-35650.4589706,0.00012299,2]
[348650656,1736698275354,-500.0,0.00012299,2]
[348650657,1736698275364,-7500.0,0.00012299,2]
[348650658,1736698275374,-7500.0,0.00012299,2]
[348650659,1736698275384,-7500.0,0.00012299,2]
[348650660,1736698275395,-7500.0,0.00012299,2]
[348650661,1736698275405,-7500.0,0.00012299,2]
[348650662,1736698275416,-7500.0,0.00012299,2]
[348650663,1736698275426,-7500.0,0.00012299,2]
[348650664,1736698275437,-7500.0,0.00012299,2]
[348650665,1736698275447,-7500.0,0.00012299,2]
[348650666,1736698275458,-7500.0,0.00012299,2]
[348650667,1736698275468,-7500.0,0.00012299,2]
[348650668,1736698275479,-7500.0,0.00012299,2]
[348650669,1736698275489,-302547.3588004,0.000123,4]
[348650670,1736698275499,-1162544.4197092,0.000123,2]
[348650671,1736698275509,-2461460.34523576,0.000123,2]
[348650672,1736698275840,-527.03,0.00011442,2]
[348650673,1736698275850,-1277.9700005,0.000123,2]
[348650674,1736698275862,-3300.0,0.000123,2]
[348650675,1736698275873,-312.3160075,0.000123,2]
[348650676,1736698275889,-6716.98021033,0.000123,2]
[348650677,1736698275901,-288.70549999,0.000123,2]
[348650678,1736698275972,-297.4799979,0.000123,2]
[348650679,1736698275984,-557.838,0.000123,2]
[348650680,1736698275996,-2446.64980124,0.000123,2]
[348650681,1736698276008,-3057.78576303,0.000123,2]
[348650682,1736698276572,-500.0,9.798e-05,2]
[348650683,1736698276583,-1085.63,0.00010621,2]
[348650684,1736698276593,-1085.63,0.00010895,2]
[348650685,1736698276602,-1085.63,0.00011169,2]
[348650686,1736698276614,-698.56,0.00011441,2]
[348650687,1736698276623,-698.56,0.00011715,2]
[348650688,1736698276632,-527.03,0.00011716,2]
[348650689,1736698276642,-698.56,0.00011989,2]
[348650690,1736698276651,-527.03,0.0001199,2]
[348650691,1736698276660,-698.56,0.00012263,2]
[348650692,1736698276669,-24.17114969,0.00012264,2]
[348650693,1736698276687,-502.85885031,0.00012264,2]
[348650694,1736698276697,-759.99114969,0.000123,2]
[348650695,1736698276715,-7381.18361,0.000123,2]
[348650696,1736698276726,-9509.5,0.000123,2]
[348650697,1736698276744,-24057.48674761,0.000123,2]
[348650698,1736698277237,-2500.0,9.698e-05,2]
[348650699,1736698277247,-500.0,9.797e-05,2]
[348650700,1736698277256,-622.73,9.798e-05,2]
[348650701,1736698277266,-500.0,0.00010071,2]
[348650702,1736698277275,-289.11,0.00010345,2]
[348650703,1736698277285,-1085.63,0.00011443,2]
[348650704,1736698277294,-1085.63,0.00011717,2]
[348650705,1736698277303,-1085.63,0.00011991,2]
[348650706,1736698277313,-1085.63,0.00012265,2]
[348650707,1736698277322,-129521.94297634,0.000123,2]
[348650708,1736698277353,-1089.53701328,0.000123,2]
[348650709,1736698277465,-196704.48386987,0.000123,2]
[348650710,1736698277476,-252.37275691,0.000123,2]
[348650711,1736698277486,-2059.5999995,0.000123,2]
[348650712,1736698277497,-3387.908,0.000123,2]
[348650713,1736698277518,-467.755884,0.000123,2]
[348650714,1736698279251,853.49,8.219e-05,2]
[348650715,1736698305198,15765195.03548387,0.00023,120]
[348650716,1736698408570,982.18,9.485e-05,2]
[348650718,1736698590851,150.0,0.00018198,120]
[348650719,1736698662460,617.72,9.275e-05,2]
[348650720,1736698662487,9135.56,9.275e-05,2]
[348650721,1736698771364,150.0,0.00019775,120]
[348650722,1736698999522,-860.1343,9.175e-05,2]
[348650723,1736698999552,-716.62,9.187e-05,2]
[348650725,1736699043485,-1000.0,9.225e-05,2]
[348650726,1736699043516,-167.38,9.25e-05,2]
[348650727,1736699043547,-14146.72,9.275e-05,2]
[348650758,1736699141297,547.07,9.213e-05,2]
[348650761,1736699160863,-150.0,0.00020414,120]
[348650762,1736699160891,-150.0,0.0002143,120]
[348650763,1736699160930,-150.0,0.00022541,120]
[348650766,1736699194141,-250.0,9.751e-05,2]
[348650767,1736699194164,-150.0,9.796e-05,2]
[348650768,1736699194190,-500.0,9.797e-05,2]
[348650769,1736699194212,-500.0,9.797e-05,2]
[348650770,1736699194235,-500.0,9.797e-05,2]
[348650771,1736699194260,-500.0,9.797e-05,2]
[348650772,1736699194282,-516.52,9.797e-05,2]
[348650773,1736699194304,-529.89,9.797e-05,2]
[348650774,1736699194326,-500.0,9.797e-05,2]
[348650775,1736699194349,-24.00113574,9.797e-05,2]
[348650776,1736699231409,837.40721248,0.0002,120]
[348650780,1736699265200,250.0,9.162e-05,2]
[348650781,1736699268191,3888.83,9e-05,2]
[348650782,1736699268215,10000.0,9e-05,2]
[348650783,1736699268236,10000.0,9e-05,2]
[348650784,1736699268258,10000.0,9e-05,2]
[348650785,1736699268280,10000.0,9e-05,2]
[348650786,1736699268302,10000.0,9e-05,2]
[348650787,1736699268324,10000.0,9e-05,2]
[348650788,1736699268346,10000.0,9e-05,2]
[348650789,1736699268367,10000.0,9e-05,2]
[348650790,1736699268388,10000.0,9e-05,2]
[348650791,1736699268409,10000.0,9e-05,2]
[348650792,1736699268432,10000.0,9e-05,2]
[348650793,1736699268454,10000.0,9e-05,2]
[348650794,1736699268480,10000.0,9e-05,2]
[348650795,1736699268501,10000.0,9e-05,2]
[348650796,1736699268523,10000.0,9e-05,2]
[348650797,1736699268544,10000.0,9e-05,2]
[348650798,1736699268566,10000.0,9e-05,2]
[348650799,1736699273093,13092.999999,0.00023,120]
[348650800,1736699283561,203.06570749,0.00023,120]
[348650806,1736699307495,150.0,0.00023,120]
[348650807,1736699307816,150.0,0.00023,120]
[348650808,1736699308123,150.0,0.00023,120]
[348650809,1736699308416,150.0,0.00023,120]
[348650810,1736699309581,150.0,0.00023,120]
[348650811,1736699309883,150.0,0.00023,120]
[348650812,1736699310626,150.0,0.00023,120]
[348650813,1736699310961,150.0,0.00023,120]
[348650814,1736699311240,200.0,0.00023,120]
[348650815,1736699312120,200.0,0.00023,120]
[348650816,1736699312214,206.78335831,0.00023,120]
[348650819,1736699314170,944.75,0.00023,120]
[348650820,1736699316340,893.01,8.219e-05,2]
[348650824,1736699322862,800.0,0.00021,120]
[348650825,1736699323291,152.78942741,0.0002,120]
[348650826,1736699323363,195.78,0.0002,120]
[348650827,1736699334691,426.0,0.00022986,120]
[348650835,1736699403163,162.07,0.00023,120]
[348650836,1736699403196,171.65663107,0.00023,120]
[348650837,1736699403294,551.03582402,0.00023,120]
[348650855,1736699432259,-300.0,8.999e-05,2]
[348650856,1736699432269,-150.0,8.999e-05,2]
[348650857,1736699432278,-500.0,8.999e-05,2]
[348650858,1736699432288,-50.0,8.999e-05,2]
[348650859,1736699432473,-450.0,8.999e-05,2]
[348650860,1736699432482,-500.0,8.999e-05,2]
[348650861,1736699432492,-500.0,8.999e-05,2]
[348650862,1736699432501,-500.0,8.999e-05,2]
[348650863,1736699432511,-502.61109831,8.999e-05,2]
[348650864,1736699432520,-500.0,8.999e-05,2]
[348650865,1736699432530,-500.0,8.999e-05,2]
[348650866,1736699432539,-310.98690242,8.999e-05,2]
[348650867,1736699432548,-808.49,8.999e-05,2]
[348650868,1736699432558,-500.0,8.999e-05,2]
[348650869,1736699432567,-500.0,8.999e-05,2]
[348650870,1736699432576,-500.0,8.999e-05,2]
[348650871,1736699432586,-900.33,8.999e-05,2]
[348650872,1736699432595,-159373.91173054,9e-05,2]
[348650873,1736699432612,-218287.96907192,9e-05,2]
[348650874,1736699432623,-70807.26941063,9e-05,2]
[348650875,1736699432635,-195330.70644049,9e-05,2]
[348650876,1736699432646,-19321.2386941,9e-05,2]
[348650877,1736699432658,-1299.87485979,9e-05,2]
[348650878,1736699432750,-4216.25061794,9e-05,2]
[348650879,1736699432764,-8199.19942315,9e-05,2]
[348650880,1736699432782,-304.219998,9e-05,2]
[348650881,1736699432793,-14502.9,9e-05,2]
[348651304,1736699437463,150.0,0.00023,120]
[348651379,1736699438195,-432.64668562,8.999e-05,2]
[348651380,1736699438253,-67.35331438,8.999e-05,2]
[348651381,1736699438263,-346.05371022,8.999e-05,2]
[348651382,1736699438274,-153.94628978,8.999e-05,2]
[348651383,1736699438283,-68195.79213078,9e-05,2]
[348651384,1736699438294,-2939.02903934,9e-05,2]
[348651385,1736699438364,-211334.96540334,9e-05,2]
[348651386,1736699438373,-940.7,9.13e-05,2]
[348651387,1736699438383,-157.77249284,9.273e-05,2]
[348651388,1736699438392,-500.0,9.273e-05,2]
[348651389,1736699438402,-500.0,9.273e-05,2]
[348651390,1736699438413,-500.0,9.273e-05,2]
[348651391,1736699438423,-500.0,9.273e-05,2]
[348651392,1736699438432,-808.49,9.273e-05,2]
[348651393,1736699438442,-500.0,9.273e-05,2]
[348651394,1736699438451,-500.0,9.273e-05,2]
[348651395,1736699438460,-900.33,9.273e-05,2]
[348651396,1736699438469,-500.0,9.273e-05,2]
[348651397,1736699438479,-500.0,9.273e-05,2]
[348651398,1736699438488,-168.07,9.328e-05,2]
[348651399,1736699438498,-500.0,9.547e-05,2]
[348651400,1736699438507,-500.0,9.547e-05,2]
[348651401,1736699438516,-500.0,9.547e-05,2]
[348651402,1736699438526,-808.49,9.547e-05,2]
[348651403,1736699438535,-500.0,9.547e-05,2]
[348651404,1736699438546,-900.33,9.547e-05,2]
[348651405,1736699438556,-500.0,9.547e-05,2]
[348651406,1736699438566,-500.0,9.547e-05,2]
[348651407,1736699438575,-500.0,9.797e-05,2]
[348651408,1736699438585,-500.0,9.797e-05,2]
[348651409,1736699438594,-500.0,9.797e-05,2]
[348651410,1736699438604,-500.0,9.797e-05,2]
[348651411,1736699438613,-500.0,9.797e-05,2]
[348651412,1736699438623,-500.0,9.797e-05,2]
[348651413,1736699438633,-500.0,9.797e-05,2]
[348651414,1736699438642,-500.0,9.797e-05,2]
[348651415,1736699438652,-500.0,9.797e-05,2]
[348651416,1736699438663,-500.0,9.797e-05,2]
[348651417,1736699438672,-509.14,9.797e-05,2]
[348651418,1736699438684,-500.0,9.797e-05,2]
[348651419,1736699438695,-500.0,9.797e-05,2]
[348651420,1736699438704,-500.0,9.797e-05,2]
[348651421,1736699438714,-500.0,9.797e-05,2]
[348651422,1736699438724,-500.0,9.797e-05,2]
[348651423,1736699438735,-500.0,9.797e-05,2]
[348651424,1736699438744,-500.0,9.797e-05,2]
[348651425,1736699438754,-172.89802378,9.797e-05,2]
[348651426,1736699438765,-500.0,9.797e-05,2]
[348651427,1736699438775,-500.0,9.797e-05,2]
[348651428,1736699438784,-500.0,9.797e-05,2]
[348651429,1736699438793,-500.0,9.797e-05,2]
[348651430,1736699438803,-500.0,9.797e-05,2]
[348651431,1736699438812,-500.0,9.797e-05,2]
[348651432,1736699438823,-500.0,9.797e-05,2]
[348651433,1736699438832,-500.0,9.797e-05,2]
[348651434,1736699438841,-500.0,9.797e-05,2]
[348651436,1736699438851,-500.0,9.797e-05,2]
[348651438,1736699438860,-500.0,9.797e-05,2]
[348651440,1736699438870,-500.0,9.797e-05,2]
[348651442,1736699438879,-500.0,9.797e-05,2]
[348651444,1736699438888,-500.0,9.797e-05,2]
[348651445,1736699438898,-500.0,9.797e-05,2]
[348651447,1736699438907,-564.22,9.797e-05,2]
[348651449,1736699438917,-500.0,9.797e-05,2]
[348651451,1736699438926,-500.0,9.797e-05,2]
[348651453,1736699438936,-500.0,9.797e-05,2]
[348651455,1736699438945,-500.0,9.797e-05,2]
[348651457,1736699438956,-500.0,9.797e-05,2]
[348651459,1736699438965,-500.0,9.797e-05,2]
[348651461,1736699438975,-500.0,9.797e-05,2]
[348651463,1736699438984,-648.48,9.797e-05,2]
[348651465,1736699438993,-551.25,9.797e-05,2]
[348651467,1736699439002,-784.77,9.797e-05,2]
[348651469,1736699439013,-640.67,9.797e-05,2]
[348651470,1736699439023,-500.0,9.797e-05,2]
[348651471,1736699439032,-500.0,9.797e-05,2]
[348651472,1736699439041,-500.0,9.797e-05,2]
[348651473,1736699439051,-500.0,9.797e-05,2]
[348651475,1736699439060,-500.0,9.797e-05,2]
[348651476,1736699439070,-500.0,9.797e-05,2]
[348651478,1736699439079,-500.0,9.797e-05,2]
[348651480,1736699439088,-512.3,9.797e-05,2]
[348651483,1736699439098,-500.0,9.797e-05,2]
[348651484,1736699439107,-500.0,9.797e-05,2]
[348651486,1736699439117,-500.0,9.797e-05,2]
[348651488,1736699439126,-500.0,9.797e-05,2]
[348651490,1736699439135,-566.44,9.797e-05,2]
[348651492,1736699439146,-500.0,9.797e-05,2]
[348651494,1736699439156,-500.0,9.797e-05,2]
[348651496,1736699439167,-1724.5,9.797e-05,2]
[348651498,1736699439178,-639.39,9.797e-05,2]
[348651500,1736699439187,-500.0,9.797e-05,2]
[348651503,1736699439196,-500.0,9.797e-05,2]
[348651504,1736699439206,-643.52,9.797e-05,2]
[348651507,1736699439216,-500.0,9.797e-05,2]
[348651509,1736699439225,-2346.85,9.797e-05,2]
[348651510,1736699439234,-500.0,9.797e-05,2]
[348651512,1736699439244,-672.71,9.797e-05,2]
[348651514,1736699439253,-500.0,9.797e-05,2]
[348651516,1736699439263,-500.0,9.797e-05,2]
[348651518,1736699439272,-500.0,9.797e-05,2]
[348651520,1736699439282,-1207.03,9.797e-05,2]
[348651522,1736699439292,-500.0,9.797e-05,2]
[348651525,1736699439301,-500.0,9.797e-05,2]
[348651526,1736699439311,-926.05,9.797e-05,2]
[348651528,1736699439320,-954.19,9.797e-05,2]
[348651530,1736699439330,-598.71,9.797e-05,2]
[348651532,1736699439340,-884.06,9.797e-05,2]
[348651534,1736699439350,-500.0,9.797e-05,2]
[348651537,1736699439360,-984.84,9.797e-05,2]
[348651539,1736699439369,-500.0,9.797e-05,2]
[348651541,1736699439379,-602.82,9.797e-05,2]
[348651543,1736699439389,-1288.71,9.797e-05,2]
[348651545,1736699439399,-501.09448143,9.797e-05,2]
[348651547,1736699439408,-500.0,9.797e-05,2]
[348651549,1736699439417,-503.86448063,9.798e-05,2]
[348651551,1736699439427,-500.91049735,9.798e-05,2]
[348651553,1736699439436,-500.0,9.798e-05,2]
[348651554,1736699439446,-386.95459117,9.798e-05,2]
[348651557,1736699439455,-500.0,9.798e-05,2]
[348651558,1736699439464,-500.0,9.798e-05,2]
[348651560,1736699439474,-500.0,9.798e-05,2]
[348651563,1736699439483,-500.23617734,9.798e-05,2]
[348651564,1736699439492,-300.0,9.798e-05,2]
[348651567,1736699439502,-500.0,9.798e-05,2]
[348651568,1736699439511,-500.0,9.798e-05,2]
[348651570,1736699439520,-302.41714979,9.798e-05,2]
[348651572,1736699439529,-502.0670643,9.798e-05,2]
[348651574,1736699439539,-503.83550883,9.798e-05,2]
[348651577,1736699439548,-500.0,9.798e-05,2]
[348651578,1736699439558,-500.0,9.798e-05,2]
[348651581,1736699439567,-500.0,9.798e-05,2]
[348651583,1736699439577,-500.87411358,9.798e-05,2]
[348651584,1736699439586,-500.0,9.798e-05,2]
[348651587,1736699439596,-500.4848365,9.798e-05,2]
[348651588,1736699439605,-500.0,9.798e-05,2]
[348651590,1736699439615,-500.0,9.798e-05,2]
[348651592,1736699439625,-338.28322092,9.798e-05,2]
[348651594,1736699439634,-500.65651366,9.798e-05,2]
[348651596,1736699439643,-643.61560146,9.798e-05,2]
[348651598,1736699439653,-501.49748223,9.798e-05,2]
[348651600,1736699439663,-500.0,9.798e-05,2]
[348651602,1736699439673,-502.08971876,9.798e-05,2]
[348651604,1736699439685,-500.0,9.798e-05,2]
[348651606,1736699439695,-500.0,9.798e-05,2]
[348651608,1736699439703,-500.0,9.798e-05,2]
[348651610,1736699439714,-349.95305625,9.798e-05,2]
[348651612,1736699439724,-500.0,9.798e-05,2]
[348651614,1736699439734,-500.0,9.798e-05,2]
[348651616,1736699439743,-500.0,9.798e-05,2]
[348651617,1736699439753,-500.0,9.798e-05,2]
[348651619,1736699439763,-500.0,9.798e-05,2]
[348651621,1736699439774,-500.0,9.798e-05,2]
[348651623,1736699439783,-500.0,9.798e-05,2]
[348651625,1736699439793,-500.0,9.798e-05,2]
[348651627,1736699439802,-500.0,9.798e-05,2]
[348651629,1736699439811,-649.75896811,9.798e-05,2]
[348651631,1736699439822,-500.0,9.798e-05,2]